bitfinex/quotes_BTCUSD_20251004
["timestamp","ask_amount","ask_price","bid_price","bid_amount"]
[1759558642295,0.02196715,122510.0,122500.0,3.701099]
[1759558642841,0.02196715,122510.0,122500.0,3.043979]
[1759558643057,0.02196715,122510.0,122500.0,3.701059]
[1759558643247,0.02196715,122510.0,122500.0,3.701019]
[1759558643474,0.02196715,122510.0,122500.0,3.7595715]
[1759558644504,0.01899715,122510.0,122500.0,3.7616315]
[1759558644716,0.01695715,122510.0,122500.0,3.7616315]
[1759558644915,0.01899715,122510.0,122500.0,3.7616315]
[1759558645331,0.02196715,122510.0,122500.0,3.7595715]
[1759558645757,0.01899715,122510.0,122500.0,3.7616315]
[1759558647770,0.02196715,122510.0,122500.0,3.7595715]
[1759558648496,0.01899715,122510.0,122500.0,3.7616315]
[1759558649019,0.02215715,122510.0,122500.0,3.1025315]
[1759558649280,0.02215715,122510.0,122500.0,3.7593715]
[1759558649674,0.02215715,122510.0,122500.0,3.1025315]
[1759558649907,0.02215715,122510.0,122500.0,3.7593715]
[1759558654707,0.02215715,122510.0,122500.0,3.1025315]
[1759558654858,0.28483518,122510.0,122500.0,0.7152325]
[1759558655061,0.26853118,122510.0,122500.0,0.7152325]
[1759558655265,0.26853118,122510.0,122500.0,0.7152725]
[1759558655895,0.26853118,122510.0,122480.0,0.41319063]
[1759558655896,0.73374132,122510.0,122490.0,0.0585525]
[1759558656114,0.73374132,122510.0,122490.0,0.33928]
[1759558656115,0.69319448,122500.0,122490.0,0.33928]
[1759558656334,0.7249751,122500.0,122470.0,0.1322894]
[1759558656551,0.16329196,122480.0,122470.0,0.05909877]
[1759558656764,0.24641402,122480.0,122470.0,3.30719777]
[1759558656968,0.25163402,122480.0,122470.0,2.76307777]
[1759558657173,0.25163402,122480.0,122470.0,3.36124527]
[1759558657847,0.25163402,122480.0,122470.0,0.00054627]
[1759558658057,0.25163402,122480.0,122470.0,1.15730627]
[1759558658266,0.25163402,122480.0,122470.0,0.65730627]
[1759558658688,0.25163402,122480.0,122470.0,0.00154627]
[1759558658898,0.25163402,122480.0,122470.0,0.65830627]
[1759558662551,0.08312206,122480.0,122470.0,3.36428527]
[1759558663154,0.16348587,122490.0,122470.0,3.36578527]
[1759558663368,0.08332533,122490.0,122480.0,2.72030819]
[1759558663584,0.24660396,122490.0,122470.0,0.66180627]
[1759558663794,0.24660396,122490.0,122480.0,2.72030819]
[1759558664031,0.24875396,122490.0,122470.0,0.65980627]
[1759558664215,0.24875396,122490.0,122480.0,2.72030819]
[1759558664372,0.24875396,122490.0,122470.0,0.66780627]
[1759558664575,0.24875396,122490.0,122480.0,2.72030819]
[1759558664789,0.24875396,122490.0,122480.0,0.003]
[1759558664992,0.24875396,122490.0,122480.0,0.01932919]
[1759558666269,0.00020327,122490.0,122480.0,2.72530819]
[1759558666470,0.00020327,122490.0,122480.0,2.710479]
[1759558666697,0.00020327,122490.0,122480.0,3.050479]
[1759558666904,0.08547533,122490.0,122480.0,3.1055315]
[1759558667106,0.08854533,122490.0,122480.0,3.363699]
[1759558667251,0.25182396,122490.0,122480.0,3.363699]
[1759558669002,0.25182396,122490.0,122480.0,2.706979]
[1759558669333,0.25182396,122490.0,122480.0,3.363859]
[1759558669783,0.25182396,122490.0,122480.0,0.34236]
[1759558670002,0.25182396,122490.0,122480.0,0.6598]
[1759558672427,0.25182396,122490.0,122480.0,0.57492]
[1759558672636,0.25182396,122490.0,122480.0,0.65976]
[1759558680446,0.24875396,122490.0,122480.0,0.66177]
[1759558681189,0.24875396,122490.0,122480.0,0.65976]
[1759558681408,0.25199396,122490.0,122480.0,0.65976]
[1759558684444,0.25199396,122490.0,122480.0,0.65956]
[1759558684559,0.25199396,122490.0,122480.0,0.23532]
[1759558684932,0.25199396,122490.0,122480.0,0.65956]
[1759558685144,0.25199396,122490.0,122480.0,0.003]
[1759558685358,0.25199396,122490.0,122480.0,1.15952]
[1759558685586,0.25199396,122490.0,122480.0,3.363499]
[1759558685833,0.25199396,122490.0,122480.0,0.65952]
[1759558686991,0.25199396,122490.0,122480.0,0.32008]
[1759558692170,0.24660396,122490.0,122480.0,0.32209]
[1759558692392,0.25199396,122490.0,122480.0,0.6594]
[1759558696456,0.25199396,122490.0,122480.0,0.7179525]
[1759558696829,0.25199396,122490.0,122480.0,0.7179125]
[1759558697025,0.25199396,122490.0,122480.0,0.7178725]
[1759558697261,0.25199396,122490.0,122480.0,0.0615525]
[1759558697462,0.25199396,122490.0,122480.0,3.9218915]
[1759558697647,0.25199396,122490.0,122480.0,0.7179125]
[1759558698511,0.25199396,122490.0,122480.0,0.0615525]
[1759558698682,0.25199396,122490.0,122480.0,0.81992]
[1759558698933,0.25199396,122490.0,122480.0,3.023899]
[1759558699135,0.25199396,122490.0,122480.0,0.31992]
[1759558699350,0.25199396,122490.0,122480.0,0.3784725]
[1759558699785,0.25199396,122490.0,122480.0,0.0615525]
[1759558699989,0.25199396,122490.0,122480.0,1.2178725]
[1759558700235,0.25199396,122490.0,122480.0,3.4218515]
[1759558700442,0.25199396,122490.0,122480.0,0.42424]
[1759558701447,0.25199396,122490.0,122480.0,0.65628]
[1759558703161,0.08332533,122490.0,122480.0,0.65979]
[1759558703378,0.08332533,122490.0,122480.0,3.26340222]
[1759558703379,0.00020327,122490.0,122480.0,3.26340222]
[1759558703687,0.00020327,122490.0,122480.0,3.60340222]
[1759558704702,0.00020327,122490.0,122480.0,3.591906]
[1759558705679,0.00020327,122490.0,122480.0,3.75519796]
[1759558710359,0.00020327,122490.0,122480.0,3.82838859]
[1759558710973,0.00020327,122490.0,122480.0,3.66509663]
[1759558711228,0.00020327,122490.0,122480.0,3.58009663]
[1759558711460,0.00020327,122490.0,122480.0,3.66493663]
[1759558712474,0.00020327,122490.0,122480.0,3.82822859]
[1759558712870,0.00020327,122490.0,122480.0,3.85272161]
[1759558713922,0.00020327,122490.0,122480.0,3.19660161]
[1759558714129,0.00120327,122490.0,122480.0,4.19804161]
[1759558714548,0.00120327,122490.0,122480.0,4.20400161]
[1759558714932,0.00120327,122490.0,122480.0,3.20860161]
[1759558715134,0.00120327,122490.0,122480.0,4.04070965]
[1759558715590,0.00120327,122490.0,122480.0,3.04530965]
[1759558715805,0.00120327,122490.0,122480.0,4.04070965]
[1759558716717,0.00120327,122490.0,122480.0,3.70130965]
[1759558717629,0.00120327,122490.0,122480.0,3.04530965]
[1759558717818,0.00120327,122490.0,122480.0,3.70122965]
[1759558718401,0.00120327,122490.0,122480.0,3.86452161]
[1759558718612,0.00120327,122490.0,122480.0,3.86448161]
[1759558721892,0.00034743,122510.0,122500.0,0.34]
[1759558722135,0.00034743,122510.0,122500.0,3.22241443]
[1759558722338,0.00034743,122510.0,122500.0,3.22438443]
[1759558722651,0.00075389,122510.0,122500.0,3.22588443]
[1759558723682,0.00375389,122510.0,122500.0,3.22588443]
[1759558725767,0.00375389,122510.0,122500.0,2.99412443]
[1759558726019,0.00375389,122510.0,122500.0,3.64992443]
[1759558726985,0.00375389,122510.0,122500.0,3.64988443]
[1759558729412,0.00375389,122510.0,122500.0,3.64838443]
[1759558730549,0.00375389,122510.0,122500.0,3.64988443]
[1759558731341,0.00375389,122510.0,122500.0,3.589846]
[1759558732306,0.00375389,122510.0,122500.0,3.591346]
[1759558733374,0.00375389,122510.0,122500.0,3.66451904]
[1759558733938,0.00375389,122510.0,122500.0,3.72622714]
[1759558734726,0.00375389,122510.0,122500.0,3.66451904]
[1759558738778,0.00375389,122510.0,122500.0,3.72452527]
[1759558739142,0.00375389,122510.0,122500.0,3.74418927]
[1759558742194,0.00375389,122510.0,122500.0,3.92292599]
[1759558742398,0.00375389,122510.0,122500.0,3.90745457]
[1759558742815,0.00075389,122510.0,122500.0,3.90745457]
[1759558743254,0.00075389,122510.0,122500.0,3.91045457]
[1759558743668,0.00075389,122510.0,122500.0,3.90745457]
[1759558743813,0.00075389,122510.0,122500.0,3.56190298]
[1759558745717,0.00075389,122510.0,122500.0,3.90190298]
[1759558751802,0.00075389,122510.0,122500.0,3.24614298]
[1759558751992,0.00075389,122510.0,122500.0,3.90150298]
[1759558753300,0.00075389,122510.0,122500.0,4.34288153]
[1759558754933,0.00075389,122510.0,122500.0,4.34284153]
[1759558756325,0.00012723,122510.0,122500.0,4.34284153]
[1759558757783,0.00012723,122510.0,122500.0,4.34280153]
[1759558758194,0.00213723,122510.0,122500.0,4.17602623]
[1759558758402,0.00534723,122510.0,122500.0,4.17602623]
[1759558758587,0.00012723,122510.0,122500.0,4.17816623]
[1759558758922,0.00012723,122510.0,122500.0,3.75558623]
[1759558759194,0.00012723,122510.0,122500.0,4.17966623]
[1759558759959,0.00012723,122510.0,122500.0,3.52442623]
[1759558760165,0.00012723,122510.0,122500.0,4.17966623]
[1759558762545,0.00012723,122510.0,122500.0,4.17816623]
[1759558762949,0.00012723,122510.0,122500.0,4.17966623]
[1759558765087,0.00012723,122510.0,122500.0,4.17816623]
[1759558765285,0.00012723,122510.0,122500.0,4.17966623]
[1759558766464,2.138e-05,122510.0,122500.0,4.17966623]
[1759558768108,0.00520138,122510.0,122500.0,3.19413944]
[1759558768311,0.08832344,122510.0,122500.0,3.17447544]
[1759558768511,0.26787941,122510.0,122500.0,3.59851544]
[1759558768712,0.25157541,122510.0,122500.0,3.756276]
[1759558769123,0.25157541,122510.0,122500.0,4.15497238]
[1759558770058,0.25157541,122510.0,122500.0,3.49981238]
[1759558770265,0.25157541,122510.0,122500.0,4.15501238]
[1759558772396,0.25157541,122510.0,122500.0,4.096316]
[1759558774036,0.25157541,122510.0,122500.0,3.441116]
[1759558774238,0.25157541,122510.0,122500.0,4.096316]
[1759558776653,0.25157541,122510.0,122500.0,4.092316]
[1759558779849,0.25157541,122510.0,122500.0,0.509]
[1759558780049,0.28172731,122510.0,122500.0,0.5938]
[1759558780263,0.30622621,122510.0,122500.0,0.5938]
[1759558780516,0.30622621,122510.0,122500.0,0.82492]
[1759558781044,0.30622621,122510.0,122500.0,0.81892]
[1759558781227,0.30822621,122510.0,122500.0,0.81892]
[1759558782000,0.30822621,122510.0,122500.0,0.81592]
[1759558782286,0.31322621,122510.0,122500.0,0.81592]
[1759558783711,0.28307431,122510.0,122500.0,0.81592]
[1759558790161,0.28107431,122510.0,122500.0,0.81592]
[1759558792206,0.28107431,122510.0,122500.0,0.81392]
[1759558792359,0.28307431,122510.0,122500.0,0.81392]
[1759558794409,0.25339541,122510.0,122500.0,0.816]
[1759558794625,0.25339541,122510.0,122500.0,0.8175]
[1759558794837,0.25339541,122510.0,122500.0,0.816]
[1759558795902,0.25139541,122510.0,122500.0,0.816]
[1759558796065,0.24639541,122510.0,122500.0,0.816]
[1759558796471,0.24839541,122510.0,122500.0,0.816]
[1759558797893,0.08514344,122510.0,122500.0,3.745616]
[1759558798108,0.00202138,122510.0,122500.0,3.429696]
[1759558798325,0.00202138,122510.0,122500.0,4.16816212]
[1759558798509,0.00202138,122510.0,122500.0,4.1095478]
[1759558798750,0.00202138,122510.0,122500.0,4.085056]
[1759558798963,2.138e-05,122510.0,122500.0,4.15841544]
[1759558799387,2.138e-05,122510.0,122500.0,4.16141544]
[1759558799990,2.138e-05,122510.0,122500.0,4.15941544]
[1759558800305,0.0002,122530.0,122510.0,0.34]
[1759558800552,0.00032019,122530.0,122520.0,3.18298753]
[1759558800791,0.00032019,122530.0,122520.0,4.19228096]
[1759558800994,0.00032019,122530.0,122520.0,4.22858802]
[1759558801230,0.00032019,122530.0,122520.0,3.23374802]
[1759558801438,0.00032019,122530.0,122520.0,4.21680516]
[1759558801695,0.00032019,122530.0,122520.0,4.12605171]
[1759558801909,0.00032019,122530.0,122520.0,4.18738574]
[1759558802324,0.00032019,122530.0,122520.0,3.11942885]
[1759558802577,0.00032019,122530.0,122520.0,4.18728297]
[1759558802777,0.00032019,122530.0,122520.0,3.19248297]
[1759558802987,0.00032019,122530.0,122520.0,4.18716297]
[1759558803336,0.00032019,122530.0,122520.0,3.19948297]
[1759558803540,0.00032019,122530.0,122520.0,4.19416297]
[1759558803801,0.00032019,122530.0,122520.0,3.19948297]
[1759558803997,0.00032019,122530.0,122520.0,4.19420297]
[1759558804608,0.00032019,122530.0,122520.0,4.12114885]
[1759558805804,0.00032019,122530.0,122520.0,3.69698885]
[1759558806008,0.00032019,122530.0,122520.0,4.12106885]
[1759558806349,0.00072656,122530.0,122520.0,4.12106885]
[1759558806514,0.00072656,122530.0,122520.0,3.1847552]
[1759558806724,0.00072656,122530.0,122520.0,4.1793952]
[1759558813917,0.00072656,122530.0,122520.0,4.1908007]
[1759558817128,0.00273656,122530.0,122520.0,3.3000902]
[1759558817330,0.00594656,122530.0,122520.0,3.6139602]
[1759558817537,0.00594656,122530.0,122520.0,2.6196002]
[1759558817778,0.00594656,122530.0,122520.0,3.2747602]
[1759558818192,0.00594656,122530.0,122520.0,2.6196002]
[1759558818388,0.00594656,122530.0,122520.0,3.2747602]
[1759558818588,0.00594656,122530.0,122520.0,2.6196002]
[1759558818794,0.00594656,122530.0,122520.0,3.2747602]
[1759558819279,0.00594656,122530.0,122520.0,2.6196002]
[1759558819556,0.00594656,122530.0,122520.0,3.2747202]
[1759558820003,0.00072656,122530.0,122520.0,3.44004885]
[1759558821680,0.00072656,122530.0,122520.0,3.2768102]
[1759558822241,0.00072656,122530.0,122520.0,3.44004885]
[1759558822436,0.00072656,122530.0,122520.0,3.0894472]
[1759558822856,0.00072656,122530.0,122520.0,3.26115307]
[1759558823223,0.00072656,122530.0,122520.0,3.26265307]
[1759558827284,0.00072656,122530.0,122520.0,3.32097942]
[1759558830828,0.00072656,122530.0,122520.0,2.32803457]
[1759558831044,0.00587656,122530.0,122520.0,3.31380735]
[1759558831506,0.01350191,122530.0,122520.0,3.025241]
[1759558831687,0.01350191,122530.0,122520.0,3.256281]
[1759558831906,0.01350191,122530.0,122520.0,2.601241]
[1759558832137,0.2761533,122530.0,122520.0,3.256281]
[1759558832350,0.2598493,122530.0,122520.0,3.256281]
[1759558832587,0.2598493,122530.0,122520.0,2.601241]
[1759558833030,0.2598493,122530.0,122520.0,3.256281]
[1759558833346,0.2598493,122530.0,122520.0,3.233346]
[1759558839417,0.25222395,122530.0,122520.0,3.233346]
[1759558843111,0.25222395,122530.0,122520.0,3.29167235]
[1759558848564,0.08587862,122530.0,122520.0,3.29167235]
[1759558849187,0.08899862,122530.0,122520.0,3.29167235]
[1759558850264,0.08899862,122530.0,122520.0,3.30178605]
[1759558853904,0.08384862,122530.0,122520.0,3.30178605]
[1759558854258,0.08384862,122530.0,122520.0,3.30186605]
[1759558854460,0.08899862,122530.0,122520.0,3.30186605]
[1759558856635,0.08899862,122530.0,122520.0,3.2435397]
[1759558856874,0.25222395,122530.0,122520.0,3.1587397]
[1759558857129,0.25222395,122530.0,122520.0,3.2435397]
[1759558858591,0.25222395,122530.0,122520.0,3.233426]
[1759558859179,0.08899862,122530.0,122520.0,3.233426]
[1759558859376,0.08899862,122530.0,122520.0,3.30648012]
[1759558864390,0.25222395,122530.0,122520.0,2.88244012]
[1759558864624,0.25222395,122530.0,122520.0,3.30648012]
[1759558865312,0.25222395,122530.0,122520.0,2.65136012]
[1759558865531,0.25222395,122530.0,122520.0,3.30648012]
[1759558870661,0.25222395,122530.0,122520.0,2.65136012]
[1759558870843,0.25222395,122530.0,122520.0,3.30648012]
[1759558872055,0.08899862,122530.0,122520.0,3.30648012]
[1759558873677,0.25222395,122530.0,122520.0,3.30648012]
[1759558875744,0.08899862,122530.0,122520.0,3.30648012]
[1759558879872,0.25222395,122530.0,122520.0,3.30648012]
[1759558881924,0.25222395,122530.0,122520.0,3.30644012]
[1759558882541,0.25222395,122530.0,122520.0,2.65136012]
[1759558882930,0.25222395,122530.0,122520.0,3.30644012]
[1759558884122,0.08384862,122530.0,122520.0,3.30644012]
[1759558884552,0.08583862,122530.0,122520.0,3.30644012]
[1759558884764,0.08895862,122530.0,122520.0,3.30644012]
[1759558886442,0.08384862,122530.0,122520.0,3.30644012]
[1759558887032,0.08583862,122530.0,122520.0,3.30644012]
[1759558887185,0.08895862,122530.0,122520.0,3.30644012]
[1759558887737,0.08384862,122530.0,122520.0,3.30644012]
[1759558887941,0.08583862,122530.0,122520.0,3.30644012]
[1759558888193,0.08895862,122530.0,122520.0,3.30644012]
[1759558888724,0.08384862,122530.0,122520.0,3.30644012]
[1759558889347,0.08591862,122530.0,122520.0,3.30644012]
[1759558889548,0.08902862,122530.0,122520.0,3.30644012]
[1759558893945,0.25225395,122530.0,122520.0,3.30644012]
[1759558894585,0.08902862,122530.0,122520.0,3.30644012]
[1759558894763,0.08591862,122530.0,122520.0,3.30644012]
[1759558895347,0.25225395,122530.0,122520.0,3.30644012]
[1759558897494,0.25225395,122530.0,122520.0,3.30640012]
[1759558897795,0.25225395,122530.0,122520.0,2.65136012]
[1759558898000,0.25225395,122530.0,122520.0,3.30640012]
[1759558899593,0.25225395,122530.0,122520.0,2.31136012]
[1759558899792,0.25225395,122530.0,122520.0,0.78680625]
[1759558899993,0.25225395,122530.0,122520.0,0.71375213]
[1759558901228,0.25525395,122530.0,122520.0,0.71375213]
[1759558902289,0.25007395,122530.0,122520.0,0.71375213]
[1759558902486,0.00372656,122530.0,122520.0,3.29205813]
[1759558902927,0.00372656,122530.0,122520.0,3.23881764]
[1759558904729,0.16695189,122530.0,122520.0,3.23881764]
[1759558908307,0.16902189,122530.0,122520.0,3.23881764]
[1759558908542,0.17213189,122530.0,122520.0,3.233346]
[1759558909043,0.17006189,122530.0,122520.0,3.233346]
[1759558909250,0.16695189,122530.0,122520.0,3.233346]
[1759558909501,0.00372656,122530.0,122520.0,3.233346]
[1759558909719,0.00372656,122530.0,122520.0,3.2405264]
[1759558909960,0.00372656,122530.0,122520.0,3.47681917]
[1759558910641,0.00058533,122530.0,122520.0,3.47681917]
[1759558911122,0.00058533,122530.0,122520.0,3.40376505]
[1759558911330,0.00058533,122530.0,122520.0,3.4770573]
[1759558912869,0.00058533,122530.0,122520.0,3.40376505]
[1759558914872,0.00058533,122530.0,122520.0,3.40393593]
[1759558915315,0.00058533,122530.0,122520.0,3.53095756]
[1759558915531,0.17465481,122560.0,122530.0,0.50322502]
[1759558915764,0.25782595,122560.0,122550.0,0.39859263]
[1759558916004,0.25989595,122560.0,122550.0,2.95269863]
[1759558917098,0.26589595,122560.0,122550.0,2.95269863]
[1759558917324,0.26589595,122560.0,122550.0,2.578306]
[1759558917539,0.26650529,122560.0,122550.0,3.233346]
[1759558917758,0.27250529,122560.0,122550.0,3.233346]
[1759558918187,0.27250529,122560.0,122550.0,3.24296875]
[1759558920465,0.26434585,122560.0,122550.0,3.24296875]
[1759558920725,0.25916585,122560.0,122550.0,3.30156138]
[1759558921433,0.01285842,122560.0,122550.0,3.30156138]
[1759558921682,0.01285842,122560.0,122550.0,2.59551861]
[1759558921899,0.01285842,122560.0,122550.0,3.15808875]
[1759558922122,0.01285842,122560.0,122550.0,3.24288875]
[1759558922590,0.00685842,122560.0,122550.0,2.64644268]
[1759558922808,0.00985842,122560.0,122550.0,3.30140268]
[1759558923716,0.00385842,122560.0,122550.0,3.30140268]
[1759558923941,0.25518585,122560.0,122550.0,1.00458275]
[1759558924162,0.25818585,122560.0,122550.0,1.00458275]
[1759558924573,0.25818585,122560.0,122550.0,0.00962275]
[1759558924965,0.25818585,122560.0,122550.0,0.65492]
[1759558925167,0.25818585,122560.0,122550.0,0.66447464]
[1759558926141,0.25818585,122560.0,122550.0,0.00955464]
[1759558926370,0.25818585,122560.0,122550.0,0.65492]
[1759558928035,0.25818585,122560.0,122540.0,0.39851393]
[1759558928215,0.25757651,122560.0,122550.0,2.893226]
[1759558928403,0.25757651,122560.0,122550.0,0.65492]
[1759558928603,0.25757651,122560.0,122550.0,0.66420519]
[1759558928832,0.25818585,122560.0,122550.0,0.66420519]
[1759558929039,0.25518585,122560.0,122550.0,0.66420519]
[1759558929395,0.25218585,122560.0,122550.0,0.66420519]
[1759558930021,0.25518585,122560.0,122550.0,0.66420519]
[1759558930368,0.25818585,122560.0,122550.0,0.66420519]
[1759558932069,0.00685842,122560.0,122550.0,2.96102512]
[1759558935712,0.00685842,122560.0,122550.0,2.90251119]
[1759558937725,0.00685842,122560.0,122550.0,2.90239119]
[1759558938339,0.00685842,122560.0,122550.0,2.97563198]
[1759558939390,0.00685842,122560.0,122550.0,2.90239119]
[1759558939550,0.00685842,122560.0,122550.0,2.97563198]
[1759558939991,0.00685842,122560.0,122550.0,2.049388]
[1759558940172,0.00685842,122560.0,122550.0,2.704188]
[1759558940372,0.00685842,122560.0,122550.0,2.280268]
[1759558940603,0.00685842,122560.0,122550.0,2.704188]
[1759558942031,0.00685842,122560.0,122550.0,2.7134915]
[1759558942440,0.00685842,122560.0,122550.0,2.7720775]
[1759558945585,0.00685842,122560.0,122550.0,3.1120775]
[1759558948680,0.00685842,122560.0,122550.0,2.4572775]
[1759558948893,0.00685842,122560.0,122550.0,3.1120775]
[1759558949777,0.00685842,122560.0,122550.0,2.6881575]
[1759558949995,0.00685842,122560.0,122550.0,3.22346301]
[1759558950647,0.00385842,122560.0,122550.0,3.22346301]
[1759558951234,0.00085842,122560.0,122550.0,3.22346301]
[1759558951642,0.00085842,122560.0,122550.0,3.24794388]
[1759558953326,0.00085842,122560.0,122550.0,3.32119698]
[1759558955675,0.00085842,122560.0,122550.0,3.15799829]
[1759558955889,0.00085842,122560.0,122550.0,3.49703829]
[1759558956708,0.00085842,122560.0,122550.0,3.66023698]
[1759558957648,0.00085842,122560.0,122550.0,3.58698388]
[1759558960443,0.00011746,122560.0,122550.0,3.66025518]
[1759558961502,0.00011746,122560.0,122550.0,3.58698388]
[1759558965206,0.00011746,122560.0,122550.0,3.58739764]
[1759558965828,0.00011746,122560.0,122550.0,3.58735764]
[1759558970425,1.597e-05,122560.0,122550.0,3.58735764]
[1759558971715,1.597e-05,122560.0,122550.0,3.68989395]
[1759558980457,0.00316,122580.0,122550.0,3.68989395]
[1759558980670,0.08633112,122580.0,122570.0,0.34]
[1759558980874,0.08836112,122580.0,122570.0,2.620148]
[1759558981282,0.08540112,122580.0,122570.0,2.620148]
[1759558981712,0.08836112,122580.0,122570.0,2.620148]
[1759558982904,0.25151987,122580.0,122570.0,2.620148]
[1759558983238,0.09436112,122580.0,122570.0,2.620148]
[1759558983462,0.10036112,122580.0,122570.0,2.620148]
[1759558985303,0.26351987,122580.0,122570.0,3.044028]
[1759558986463,0.26392599,122580.0,122570.0,3.044028]
[1759558989428,0.26392599,122580.0,122570.0,2.959268]
[1759558989630,0.26392599,122580.0,122570.0,3.044028]
[1759558991848,0.26392599,122580.0,122570.0,2.959268]
[1759558992045,0.26392599,122580.0,122570.0,3.044028]
[1759558993972,0.10076724,122580.0,122570.0,3.044028]
[1759558994366,0.10076724,122580.0,122570.0,3.11737343]
[1759558994574,0.26392599,122580.0,122570.0,3.11737343]
[1759558997270,0.10076724,122580.0,122570.0,3.11737343]
[1759559003517,0.09780724,122580.0,122570.0,3.11737343]
[1759559003754,0.10076724,122580.0,122570.0,3.11737343]
[1759559004916,0.09577724,122580.0,122570.0,3.11737343]
[1759559013775,0.09790724,122580.0,122570.0,3.11737343]
[1759559014210,0.09790724,122580.0,122570.0,2.69341343]
[1759559014345,0.09790724,122580.0,122570.0,3.11729343]
[1759559020367,0.09790724,122580.0,122570.0,2.46273343]
[1759559020579,0.09190724,122580.0,122570.0,3.11729343]
[1759559020791,0.08590724,122580.0,122570.0,3.11729343]
[1759559020992,0.08890724,122580.0,122570.0,3.11729343]
[1759559021214,0.09184724,122580.0,122570.0,3.11729343]
[1759559022119,0.09484724,122580.0,122570.0,3.11729343]
[1759559024180,0.08977724,122580.0,122570.0,2.77729343]
[1759559024381,0.08977724,122580.0,122570.0,2.703948]
[1759559024785,0.09190724,122580.0,122570.0,2.703948]
[1759559029269,0.08977724,122580.0,122570.0,2.703948]
[1759559029482,0.09190724,122580.0,122570.0,2.703948]
[1759559031535,0.08977724,122580.0,122570.0,2.703948]
[1759559034467,0.08977724,122580.0,122570.0,2.77729343]
[1759559035380,0.09190724,122580.0,122570.0,2.77729343]
[1759559036411,0.09190724,122580.0,122570.0,2.12273343]
[1759559036630,0.09190724,122580.0,122570.0,2.77717343]
[1759559037279,0.09484724,122580.0,122570.0,2.77717343]
[1759559038211,0.09484724,122580.0,122570.0,2.69241343]
[1759559038435,0.09484724,122580.0,122570.0,2.77717343]
[1759559038851,0.09484724,122580.0,122570.0,2.69241343]
[1759559039073,0.09484724,122580.0,122570.0,2.12273343]
[1759559039291,0.09484724,122580.0,122570.0,2.77717343]
[1759559039704,0.09484724,122580.0,122570.0,2.80165298]
[1759559039919,0.09484724,122580.0,122570.0,2.14721298]
[1759559040128,0.09484724,122580.0,122570.0,2.80165298]
[1759559040785,0.25800599,122580.0,122570.0,2.80165298]
[1759559041215,0.25800599,122580.0,122570.0,2.14721298]
[1759559041449,0.25800599,122580.0,122570.0,2.48629298]
[1759559041660,0.25800599,122580.0,122570.0,2.12273343]
[1759559041877,0.25800599,122580.0,122570.0,2.279988]
[1759559042092,0.28248682,122580.0,122570.0,2.76255477]
[1759559042525,0.28248682,122580.0,122570.0,2.33867477]
[1759559042744,0.28248682,122580.0,122570.0,2.76255477]
[1759559043397,0.28248682,122580.0,122570.0,2.10807477]
[1759559043615,0.28248682,122580.0,122570.0,2.76255477]
[1759559044728,0.28248682,122580.0,122570.0,2.10807477]
[1759559044933,0.28248682,122580.0,122570.0,2.76255477]
[1759559046212,0.28248682,122580.0,122570.0,2.10807477]
[1759559046443,0.28248682,122580.0,122570.0,2.76255477]
[1759559047554,0.28248682,122580.0,122570.0,2.33867477]
[1759559047738,0.28248682,122580.0,122570.0,2.76255477]
[1759559049906,0.28248682,122580.0,122570.0,2.10807477]
[1759559050043,0.28248682,122580.0,122570.0,0.65444]
[1759559054165,0.16317206,122570.0,122560.0,0.05868677]
[1759559054379,0.24629412,122570.0,122560.0,2.76251477]
[1759559054631,0.2464972,122570.0,122560.0,2.10807477]
[1759559054804,0.27295865,122570.0,122560.0,2.33863477]
[1759559055034,0.27295865,122570.0,122560.0,2.76251477]
[1759559055035,0.27606865,122570.0,122560.0,2.76251477]
[1759559055253,0.27295865,122570.0,122560.0,2.76251477]
[1759559055467,0.27595865,122570.0,122560.0,2.76251477]
[1759559056953,0.27906865,122570.0,122560.0,2.76251477]
[1759559066615,0.27906865,122570.0,122560.0,2.10807477]
[1759559066830,0.27906865,122570.0,122560.0,0.28924677]
[1759559067053,0.16318537,122560.0,122550.0,0.06894987]
[1759559067277,0.24941743,122560.0,122550.0,2.77277787]
[1759559067471,0.25139743,122560.0,122550.0,2.77277787]
[1759559067899,0.27588235,122560.0,122550.0,2.77277787]
[1759559068120,0.27588235,122560.0,122550.0,0.4341431]
[1759559068468,0.27588235,122560.0,122550.0,0.6676631]
[1759559069374,0.27588235,122560.0,122550.0,0.6646631]
[1759559070659,0.28188235,122560.0,122550.0,0.6646631]
[1759559071595,0.12260698,122560.0,122550.0,2.7140511]
[1759559074150,0.12468698,122560.0,122550.0,2.0596511]
[1759559074358,0.30735635,122560.0,122550.0,0.6647431]
[1759559074560,0.29105235,122560.0,122550.0,0.6647431]
[1759559076373,0.29105235,122560.0,122550.0,0.0102631]
[1759559076614,0.29105235,122560.0,122550.0,3.2141311]
[1759559076821,0.29105235,122560.0,122550.0,0.0102631]
[1759559076995,0.29105235,122560.0,122550.0,3.2141311]
[1759559077193,0.29105235,122560.0,122550.0,0.6647431]
[1759559077598,0.29105235,122560.0,122550.0,0.6647031]
[1759559079006,0.29105235,122560.0,122550.0,0.0102631]
[1759559079249,0.29105235,122560.0,122550.0,0.3255431]
[1759559084623,0.16319869,122550.0,122520.0,0.08317455]
[1759559084823,0.08312206,122540.0,122530.0,2.973308]
[1759559084994,0.08312206,122540.0,122530.0,2.473308]
[1759559085433,0.10760984,122540.0,122530.0,2.473308]
[1759559085624,0.10760984,122540.0,122530.0,2.48843908]
[1759559085827,0.10760984,122540.0,122530.0,2.71895908]
[1759559086023,0.10760984,122540.0,122530.0,2.71900816]
[1759559086576,0.10760984,122540.0,122530.0,3.05900816]
[1759559087800,0.11060984,122540.0,122530.0,3.05900816]
[1759559088594,0.11060984,122540.0,122530.0,2.40456816]
[1759559088798,0.11060984,122540.0,122530.0,3.05908816]
[1759559096558,0.11060984,122540.0,122530.0,3.13243359]
[1759559096981,0.11060984,122540.0,122530.0,3.13283991]
[1759559099612,0.08612206,122540.0,122530.0,3.13283991]
[1759559105105,0.08612206,122540.0,122530.0,2.47831991]
[1759559105315,0.003,122540.0,122530.0,3.13283991]
[1759559105447,0.003,122540.0,122530.0,3.29606524]
[1759559105668,0.003,122540.0,122530.0,3.36060833]
[1759559105869,0.00054403,122540.0,122530.0,3.30816711]
[1759559107565,0.00054403,122540.0,122530.0,2.49042178]
[1759559107787,0.00054403,122540.0,122530.0,3.48410178]
[1759559108141,0.00054403,122540.0,122530.0,2.49042178]
[1759559108355,0.00054403,122540.0,122530.0,3.48410178]
[1759559108587,0.00054403,122540.0,122530.0,3.55738745]
[1759559110402,0.00054403,122540.0,122530.0,2.56370745]
[1759559110653,0.00054403,122540.0,122530.0,3.55738745]
[1759559111673,0.16875604,122540.0,122530.0,2.90218015]
[1759559111875,0.16875604,122540.0,122530.0,2.13826015]
[1759559112404,0.16875604,122540.0,122530.0,3.11799187]
[1759559114111,0.16875604,122540.0,122530.0,2.46359187]
[1759559114320,0.16875604,122540.0,122530.0,3.11799187]
[1759559115043,0.16875604,122540.0,122530.0,2.69407187]